bitfinex/quotes_SOLUSD_20220114
["timestamp","ask_amount","ask_price","bid_price","bid_amount"]
[1642171583719,3.93227923,145.59,145.54,10.5626]
[1642171584022,3.93227923,145.59,145.54,16.8126]
[1642171584023,0.04,145.59,145.54,16.8126]
[1642171584620,0.04,145.59,145.54,10.3026]
[1642171585520,0.04,145.59,145.54,10.5626]
[1642171586627,0.04,145.59,145.54,16.5626]
[1642171587025,0.04,145.59,145.54,10.3026]
[1642171587225,0.04,145.59,145.53,10.3038]
[1642171587433,2.748,145.58,145.49,7.932]
[1642171587634,2.748,145.58,145.5,6.0]
[1642171587831,2.748,145.58,145.49,13.932]
[1642171588034,2.748,145.58,145.49,14.182]
[1642171588236,2.748,145.58,145.51,11.7658458]
[1642171588437,0.04,145.59,145.52,2.748]
[1642171588636,0.04,145.59,145.52,11.8381458]
[1642171588838,0.04,145.59,145.52,18.3481458]
[1642171589240,0.04,145.59,145.55,10.3011]
[1642171589439,0.04,145.59,145.56,2.747]
[1642171589640,0.04,145.59,145.57,3.03219996]
[1642171591070,0.04,145.59,145.57,13.33089996]
[1642171591971,0.04,145.59,145.57,13.59089996]
[1642171592172,0.04,145.59,145.57,19.15789996]
[1642171592972,0.04,145.59,145.57,25.15789996]
[1642171593371,0.04,145.59,145.57,25.40789996]
[1642171593573,0.04,145.59,145.57,35.11904576]
[1642171593873,2.30584831,145.6,145.58,80.0173]
[1642171594072,2.30584831,145.6,145.58,89.2743]
[1642171594276,0.03791311,145.61,145.59,76.28219996]
[1642171594473,9.234e-05,145.63,145.59,94.50195664]
[1642171594675,2.747,145.71,145.6,40.7575458]
[1642171594874,3.92100517,145.64,145.61,8.25]
[1642171595074,3.92100517,145.64,145.61,27.93090248]
[1642171595276,3.92100517,145.64,145.62,71.1811458]
[1642171595481,3.92100517,145.64,145.62,97.65090248]
[1642171595676,0.07962902,145.8,145.66,1.4611458]
[1642171595876,0.07962902,145.8,145.78,37.94432098]
[1642171596275,2.82262902,145.8,145.78,37.94432098]
[1642171596476,2.82262902,145.8,145.79,3.03219996]
[1642171596680,15.67827444,145.84,145.79,57.73164512]
[1642171596880,0.21010889,145.8,145.79,68.26784512]
[1642171597088,15.67827444,145.84,145.79,76.77784512]
[1642171597477,15.67827444,145.84,145.8,33.38508628]
[1642171597679,23.69207216,145.88,145.82,1.41409506]
[1642171597898,23.69207216,145.88,145.83,8.25]
[1642171598078,23.69207216,145.88,145.84,10.2772]
[1642171598280,23.69207216,145.88,145.84,43.66228628]
[1642171598478,1.66757125,145.91,145.84,49.66228628]
[1642171598678,1.66757125,145.91,145.84,10.2772]
[1642171598679,2.742,145.9,145.84,10.2772]
[1642171598879,2.742,145.9,145.84,37.67459787]
[1642171599079,0.08,145.88,145.84,10.2772]
[1642171599279,0.08,145.88,145.84,37.67459787]
[1642171599482,0.12,145.88,145.84,10.2772]
[1642171599681,2.742,145.87,145.83,0.02]
[1642171600180,28.99600949,145.86,145.83,27.41739787]
[1642171600381,5.7741,145.85,145.79,34.2705]
[1642171600580,6.0241,145.85,145.78,37.94432098]
[1642171600781,5.7741,145.85,145.78,37.94432098]
[1642171600983,6.0241,145.85,145.78,37.94432098]
[1642171601384,1.70077588,145.84,145.78,37.94432098]
[1642171601682,32.28936374,145.83,145.71,9.89]
[1642171602086,1.70077588,145.82,145.71,9.89]
[1642171602285,2.744,145.81,145.66,9.89]
[1642171602484,18.634,145.81,145.65,2.744]
[1642171602686,11.99237588,145.8,145.63,2.744]
[1642171602883,12.635,145.79,145.62,9.89]
[1642171603084,14.33577588,145.79,145.62,2.745]
[1642171603286,30.00133613,145.78,145.6,1.4611458]
[1642171603485,12.635,145.77,145.61,130.353782]
[1642171603687,10.2944,145.76,145.62,127.608782]
[1642171603888,12.635,145.75,145.62,127.608782]
[1642171604087,12.885,145.75,145.59,9.89]
[1642171604287,29.20614899,145.74,145.6,11.85217527]
[1642171604488,5.31843314,145.83,145.63,1.4611458]
[1642171604489,12.635,145.73,145.63,1.4611458]
[1642171604690,9.89,145.77,145.64,2.745]
[1642171604887,123.58,145.82,145.64,2.745]
[1642171604888,2.745,145.81,145.64,12.635]
[1642171605088,2.745,145.81,145.65,1.46153111]
[1642171605287,2.745,145.81,145.65,11.35153111]
[1642171605489,31.90403934,145.8,145.65,17.61153111]
[1642171605687,2.744,145.79,145.66,1.46153111]
[1642171605888,2.744,145.81,145.67,9.89]
[1642171606088,0.04,145.83,145.67,24.52335158]
[1642171606290,19.37408667,145.83,145.68,20.59012369]
[1642171606488,19.37408667,145.83,145.68,39.69988269]
[1642171606689,19.37408667,145.83,145.69,30.01468386]
[1642171606892,0.04,145.83,145.7,86.276284]
[1642171607093,0.04,145.83,145.7,114.21468386]
[1642171607394,19.37408667,145.83,145.71,30.01468386]
[1642171607593,19.37408667,145.83,145.72,8.23]
[1642171607793,19.37408667,145.83,145.73,2.743]
[1642171608091,19.37408667,145.83,145.74,8.23]
[1642171608293,2.743,145.9,145.77,74.0]
[1642171608593,0.83052631,145.91,145.84,1.77017038]
[1642171608793,0.83052631,145.91,145.85,10.472]
[1642171608994,31.33483547,145.9,145.85,16.982]
[1642171609193,31.33483547,145.9,145.85,16.732]
[1642171609396,0.83052631,145.91,145.86,1.46208654]
[1642171609595,0.83052631,145.91,145.86,7.72208654]
[1642171609795,0.83052631,145.91,145.86,7.97208654]
[1642171610995,0.83052631,145.91,145.86,6.25]
[1642171611294,0.83052631,145.91,145.87,9.69208654]
[1642171611497,0.83052631,145.91,145.88,2.741]
[1642171611698,0.83052631,145.91,145.89,3.03219996]
[1642171611896,0.33052631,145.91,145.89,3.03219996]
[1642171612499,3.36262631,145.91,145.89,11.62619996]
[1642171612697,0.33052631,145.91,145.9,2.741]
[1642171612899,0.33052631,145.91,145.89,3.03219996]
[1642171613099,0.33052631,145.91,145.89,4.4942865]
[1642171613296,0.33052631,145.91,145.89,10.7542865]
[1642171613498,2.631e-05,145.91,145.9,28.0]
[1642171613804,2.631e-05,145.91,145.9,4.20308654]
[1642171614000,731.8321883,146.0,145.9,10.71308654]
[1642171614201,731.8321883,146.0,145.91,2.74]
[1642171614800,2.74,145.99,145.89,8.23]
[1642171615003,2.99,145.99,145.85,8.23]
[1642171615401,2.99,145.99,145.8,24.6757]
[1642171615402,17.22,145.99,145.81,8.23]
[1642171615803,27.4994,145.99,145.81,8.23]
[1642171616204,1.70077588,145.98,145.81,8.23]
[1642171616403,25.66180822,145.96,145.78,8.23]
[1642171616640,10.972,145.95,145.78,8.23]
[1642171617031,10.972,145.95,145.77,2.742]
[1642171617032,10.2837,145.93,145.77,2.742]
[1642171617233,29.92129738,145.91,145.74,2.742]
[1642171617432,10.973,145.9,145.75,15.127356]
[1642171617636,10.973,145.9,145.76,2.743]
[1642171617834,11.223,145.9,145.77,15.127356]
[1642171618235,21.5088,145.9,145.78,15.127356]
[1642171618435,21.5088,145.9,145.79,5.94896]
[1642171618634,21.5088,145.9,145.66,98.6685]
[1642171618635,75.70077588,145.89,145.7,8.23]
[1642171618835,36.19518521,145.88,145.69,2.743]
[1642171619035,43.89596109,145.88,145.69,8.743]
[1642171619236,44.14596109,145.88,145.69,8.743]
[1642171619436,42.44518521,145.88,145.69,22.11404064]
[1642171619636,42.19518521,145.88,145.69,22.11404064]
[1642171619836,42.19518521,145.88,145.71,70.04073313]
[1642171620036,31.22218521,145.88,145.73,69.72]
[1642171620247,31.22218521,145.88,145.75,69.72]
[1642171620440,31.22218521,145.88,145.75,8.23]
[1642171620636,31.22218521,145.88,145.75,14.48]
[1642171620835,31.22218521,145.88,145.75,26.3889541]
[1642171621041,39.45218521,145.88,145.75,18.1589541]
[1642171621246,39.45218521,145.88,145.75,11.9089541]
[1642171621442,2.743,145.87,145.75,12.1589541]
[1642171621646,2.743,145.87,145.75,17.9089541]
[1642171622037,2.743,145.87,145.76,1.45838584]
[1642171622238,31.22218521,145.88,145.76,8.28938584]
[1642171622536,31.22218521,145.88,145.77,11.9089541]
[1642171622736,25.22218521,145.88,145.78,8.23]
[1642171622938,25.22218521,145.88,145.77,19.36733994]
[1642171622939,25.22218521,145.88,145.79,2.742]
[1642171623136,25.22218521,145.88,145.78,2.742]
[1642171623336,25.22218521,145.88,145.77,20.9009541]
[1642171623536,25.22218521,145.88,145.78,11.9089541]
[1642171623737,2.742,145.91,145.79,2.742]
[1642171623938,2.742,145.94,145.79,2.742]
[1642171624139,2.742,145.94,145.8,20.1389541]
[1642171624336,0.08,145.95,145.81,2.742]
[1642171624536,2.741,145.94,145.81,8.742]
[1642171624735,28.72014673,145.93,145.81,8.742]
[1642171624936,2.742,145.92,145.81,8.742]
[1642171625136,2.742,145.92,145.81,4.45038584]
[1642171625336,2.742,145.92,145.81,10.45038584]
[1642171626136,28.72014673,145.93,145.81,10.45038584]
[1642171626336,28.72014673,145.93,145.81,17.62538584]
[1642171627238,28.72014673,145.93,145.81,29.28433994]
[1642171628140,28.72014673,145.93,145.82,8.23]
[1642171628337,28.72014673,145.93,145.83,2.742]
[1642171628538,28.72014673,145.93,145.83,10.71038584]
[1642171628741,28.72014673,145.93,145.84,8.23]
[1642171628942,31.46114673,145.93,145.84,8.23]
[1642171629142,31.46114673,145.93,145.84,14.23]
[1642171629542,31.46114673,145.93,145.84,15.93838584]
[1642171629941,31.54114673,145.93,145.84,15.93838584]
[1642171630145,31.54114673,145.93,145.84,14.48]
[1642171630440,31.79114673,145.93,145.84,8.23]
[1642171631141,31.79114673,145.93,145.82,2.741]
[1642171631339,31.79114673,145.93,145.82,8.741]
[1642171631545,31.79114673,145.93,145.82,2.741]
[1642171632743,77.95,145.92,145.78,2.742]
[1642171633041,23.59008001,145.9,145.78,2.992]
[1642171633244,2.742,145.89,145.78,2.992]
[1642171633442,2.742,145.89,145.78,8.992]
[1642171634244,23.59008001,145.9,145.78,8.992]
[1642171634545,2.742,145.91,145.78,24.73238584]
[1642171634745,0.08,145.93,145.78,24.73238584]
[1642171634947,0.08,145.93,145.79,6.9089541]
[1642171635147,0.08,145.93,145.8,10.972]
[1642171635646,0.08,145.93,145.8,17.482]
[1642171635850,0.08,145.93,145.81,1.45838584]
[1642171636147,0.08,145.93,145.82,2.742]
[1642171636346,0.08,145.93,145.82,2.992]
[1642171636547,0.08,145.93,145.83,18.452287]
[1642171636748,0.08,145.93,145.84,2.741]
[1642171636947,0.08,145.93,145.85,8.23]
[1642171637149,0.08,145.93,145.86,2.741]
[1642171637346,700.0,146.0,145.87,8.23]
[1642171637547,700.0,146.0,145.94,0.30893772]
[1642171637747,543.1218,146.0,145.95,10.97]
[1642171637948,543.1218,146.0,145.95,12.99450296]
[1642171638148,543.1218,146.0,145.95,19.24450296]
[1642171638348,121.2925,146.0,145.99,0.30252743]
[1642171638649,5.74150872,146.06,145.99,5.77119996]
[1642171638852,44.58505958,146.12,146.09,2.27755599]
[1642171639049,3.0321,146.11,146.09,2.27755599]
[1642171639249,44.58505958,146.12,146.09,2.5993819]
[1642171639450,44.58505958,146.12,146.09,2.27755599]
[1642171639648,44.58505958,146.12,146.09,2.52755599]
[1642171639847,2.737,146.19,146.11,0.3212312]
[1642171639848,34.87,146.19,146.11,0.3212312]
[1642171640049,9.79727782,146.16,146.12,2.736]
[1642171640250,30.66727782,146.19,146.12,2.736]
[1642171640447,33.40327782,146.19,146.12,2.736]
[1642171640648,1.70077588,146.18,146.09,0.00755599]
[1642171640849,2.737,146.17,146.07,8.23]
[1642171641048,8.26247,146.16,146.01,8.23]
[1642171641253,8.26247,146.16,145.96,6.0]
[1642171641254,26.84512312,146.14,145.96,6.0]
[1642171641548,26.84512312,146.14,145.9,8.23]
[1642171641549,19.23047,146.13,145.9,8.23]
[1642171641748,45.24455488,146.13,145.91,2.739]
[1642171641950,19.82608488,146.12,145.91,2.739]
[1642171642150,102.86,146.08,145.89,2.739]
[1642171642349,23.33405423,146.06,145.85,4.19478844]
[1642171642548,23.33405423,146.06,145.85,2.74]
[1642171642549,19.23247,146.05,145.85,2.74]
[1642171642747,102.86,146.03,145.83,2.74]
[1642171642948,28.15753135,146.01,145.79,2.74]
[1642171643148,3.95395458,146.0,145.78,2.741]
[1642171643351,0.8716216,146.01,145.9,0.30158464]
[1642171643551,21.97955448,146.22,145.97,0.31956938]
[1642171643753,14.39235448,146.22,146.0,1.45478844]
[1642171643953,8.26247,146.21,146.06,0.3090552]
[1642171644151,16.49247,146.21,146.07,2.737]
[1642171644560,40.32687662,146.21,146.07,24.9171384]
[1642171644755,40.32687662,146.21,146.08,1.48021044]
[1642171644952,42.36077662,146.21,146.09,2.737]
[1642171645152,2.736,146.2,146.09,2.737]
[1642171645351,2.736,146.2,146.1,1.48021044]
[1642171645552,10.966,146.2,146.1,0.25]
[1642171645852,2.736,146.2,146.1,0.25]
[1642171646054,2.736,146.2,146.1,8.23]
[1642171646257,2.736,146.2,146.11,1.48021044]
[1642171646453,74.0769,146.28,146.11,1.74021044]
[1642171646454,2.736,146.24,146.11,1.74021044]
[1642171646653,2.736,146.27,146.12,8.23]
[1642171646853,30.36682264,146.26,146.12,9.71021044]
[1642171647053,12.9968,146.25,146.12,15.97021044]
[1642171647255,8.26247,146.24,146.13,1.49043456]
[1642171647455,32.97780182,146.23,146.13,1.75043456]
[1642171647655,0.25,146.24,146.13,7.75043456]
[1642171647856,0.25,146.25,146.14,1.49043456]
[1642171648156,10.99847,146.24,146.12,8.23]
[1642171648354,21.26007,146.24,146.12,8.23]
[1642171648557,28.08971965,146.23,146.12,8.23]
[1642171648757,2.736,146.22,146.12,14.23]
[1642171648961,2.736,146.23,146.13,1.49043456]
[1642171649160,54.6615,146.31,146.14,10.966]
[1642171649161,2.736,146.3,146.14,10.966]
[1642171649356,2.736,146.3,146.15,0.30613289]
[1642171649556,12.9934,146.3,146.16,21.2233]
[1642171649756,40.20101661,146.29,146.16,8.23]
[1642171649957,2.735,146.28,146.16,14.23]
[1642171650156,24.68145001,146.26,146.16,8.23]
[1642171650384,2.735,146.25,146.16,8.23]
[1642171650558,10.2629,146.22,146.13,8.23]
[1642171650759,12.9989,146.22,146.13,8.23]
[1642171650956,12.9989,146.22,146.11,2.735]
[1642171650957,13.2489,146.22,146.11,2.735]
[1642171651156,13.2489,146.22,146.09,8.23]
[1642171651157,27.08414838,146.2,146.09,8.23]
[1642171651361,10.99947,146.19,146.06,8.23]
[1642171651759,10.2667,146.17,146.06,8.23]
[1642171651959,23.13043908,146.15,146.03,8.23]
[1642171652158,23.13043908,146.15,146.0,8.23]
[1642171652159,2.738,146.14,146.0,8.23]
[1642171652359,2.738,146.14,146.01,2.738]
[1642171652559,2.738,146.14,146.02,8.23]
[1642171652759,2.738,146.19,146.03,2.738]
[1642171652959,10.5148,146.19,146.04,8.23]
[1642171653159,2.737,146.18,146.05,2.737]
[1642171653359,2.737,146.18,146.06,8.23]
[1642171653564,2.737,146.22,146.07,2.737]
[1642171653769,2.737,146.22,146.07,21.24043456]
[1642171653963,2.737,146.22,146.07,21.50043456]
[1642171654165,2.737,146.22,146.07,31.50533456]
[1642171654166,12.9997,146.22,146.07,31.50533456]
[1642171654360,2.737,146.22,146.1,0.31871879]
[1642171654561,2.737,146.22,146.11,10.966]
[1642171654861,2.736,146.31,146.14,0.30251893]
[1642171655061,2.735,146.35,146.15,10.965]
[1642171655264,2.735,146.37,146.16,10.2564]
[1642171655460,8.26247,146.35,146.17,8.23]
[1642171655660,29.37759268,146.34,146.17,14.696]
[1642171655861,29.37759268,146.34,146.17,22.69643456]
[1642171656061,29.37759268,146.34,146.17,21.206]
[1642171656360,2.734,146.34,146.22,10.254]
[1642171656564,2.734,146.34,146.23,8.23]
[1642171656760,2.734,146.34,146.22,14.901]
[1642171656761,2.734,146.37,146.24,8.23]
[1642171656961,2.734,146.39,146.25,8.23]
[1642171657161,2.734,146.39,146.25,15.376]
[1642171657362,31.3720362,146.38,146.25,21.886]
[1642171657564,2.733,146.37,146.26,12.9835]
[1642171657764,2.733,146.37,146.27,8.23]
[1642171657991,8.26247,146.36,146.26,8.23]
[1642171658194,30.8685982,146.35,146.26,8.23]
[1642171658897,39.3810682,146.35,146.26,8.23]
[1642171659798,49.6347682,146.35,146.26,8.23]
[1642171660203,39.1310682,146.35,146.26,8.23]
[1642171660599,36.3980682,146.35,146.26,8.23]
[1642171660894,28.1355982,146.35,146.26,18.4806]
[1642171661095,28.1355982,146.35,146.26,24.4806]
[1642171661297,28.1355982,146.35,146.26,24.7306]
[1642171661895,28.1355982,146.35,146.26,8.48]
[1642171662200,28.3855982,146.35,146.26,8.23]
[1642171662495,2.734,146.34,146.24,8.23]
[1642171662696,30.8695982,146.35,146.24,8.23]
[1642171663497,30.8695982,146.35,146.24,14.23]
[1642171663699,30.8695982,146.35,146.25,10.2513]
[1642171663901,31.1195982,146.35,146.26,8.23]
[1642171664099,30.8695982,146.35,146.26,8.23]
[1642171664499,31.1195982,146.35,146.26,8.23]
[1642171664698,18.51677,146.34,146.26,8.23]
[1642171665099,18.76677,146.34,146.26,8.23]
[1642171665498,18.51677,146.34,146.26,8.23]
[1642171665900,10.2563,146.31,146.22,10.964]
[1642171666099,31.03730581,146.29,146.22,10.964]
[1642171666298,31.03730581,146.29,146.22,2.734]
[1642171666503,31.03730581,146.29,146.18,8.23]
[1642171666903,31.03730581,146.29,146.17,10.964]
[1642171667101,8.26247,146.34,146.18,16.81960082]
[1642171667302,8.26247,146.34,146.19,2.734]
[1642171667501,2.734,146.33,146.2,8.23]
[1642171667705,2.734,146.33,146.21,2.734]
[1642171667900,2.734,146.33,146.22,8.23]
[1642171668102,29.21339075,146.32,146.23,2.734]
[1642171668303,2.734,146.31,146.22,8.23]
[1642171668503,2.734,146.31,146.19,8.23]
[1642171669302,34.31853661,146.28,146.19,8.23]
[1642171669506,2.735,146.34,146.2,2.735]
[1642171669703,2.735,146.34,146.21,8.23]
[1642171669901,0.08,146.35,146.22,2.734]
[1642171670103,0.08,146.35,146.23,8.23]
[1642171670302,0.08,146.35,146.24,2.734]
[1642171670506,10.3332,146.35,146.25,8.23]
[1642171670802,25.45244798,146.34,146.25,8.23]
[1642171671006,25.45244798,146.34,146.25,14.48]
[1642171671203,25.45244798,146.34,146.25,8.23]
[1642171671405,2.734,146.33,146.25,8.23]
[1642171671608,0.04,146.31,146.24,2.734]
[1642171671805,10.2569,146.3,146.24,2.734]
[1642171672006,27.51268572,146.29,146.24,2.734]
[1642171672405,33.0,146.28,146.17,8.23]
[1642171672606,33.0,146.28,146.18,2.735]
[1642171673206,25.26218613,146.26,146.18,2.735]
[1642171673905,25.26218613,146.26,146.18,6.0]
[1642171674107,25.26218613,146.26,146.15,14.23]
[1642171674707,10.26,146.25,146.15,14.23]
[1642171674906,10.26,146.25,146.15,14.48]
[1642171675104,10.26,146.25,146.15,8.23]
[1642171675305,10.51,146.25,146.12,2.735]
[1642171675506,2.736,146.24,146.12,8.23]
[1642171675805,24.91925571,146.17,146.12,8.23]
[1642171676004,24.91925571,146.17,146.09,8.23]
[1642171676205,24.91925571,146.17,146.08,2.736]
[1642171676804,10.2676,146.14,146.08,2.736]
[1642171677005,38.39363527,146.14,146.08,2.736]
[1642171677406,10.2676,146.14,146.08,2.736]
[1642171677806,10.2664,146.16,146.08,2.736]
[1642171678009,2.737,146.22,146.09,8.23]
[1642171678205,8.26247,146.24,146.1,69.72]
[1642171678405,23.50841603,146.21,146.11,8.23]
[1642171678605,23.50841603,146.21,146.11,22.794]
[1642171678804,23.50841603,146.21,146.12,2.736]
[1642171679005,23.50841603,146.21,146.13,8.23]
[1642171679206,25.2935,146.27,146.13,14.246]
[1642171679406,25.2935,146.27,146.14,2.735]
[1642171679607,22.5575,146.27,146.15,8.23]
[1642171679808,22.5575,146.27,146.16,2.735]
[1642171680010,25.2925,146.27,146.17,8.23]
[1642171680209,10.2603,146.25,146.17,8.23]
[1642171680412,23.21355966,146.23,146.16,6.0]
[1642171680609,23.21355966,146.23,146.11,2.736]
[1642171680810,23.21355966,146.23,146.12,8.23]
[1642171681010,23.21355966,146.23,146.12,14.48]
[1642171681209,23.21355966,146.23,146.12,32.8241]
[1642171681709,22.21355966,146.23,146.12,32.8241]
[1642171681909,22.21355966,146.23,146.12,33.0841]
[1642171682110,22.21355966,146.23,146.13,2.736]
[1642171682309,22.21355966,146.23,146.14,8.23]
[1642171682513,22.21355966,146.23,146.18,10.2583]
[1642171682710,2.736,146.29,146.18,16.1793]
[1642171683017,2.735,146.32,146.19,2.735]
[1642171683211,156.2099,146.34,146.2,8.23]
[1642171683212,22.7642,146.33,146.2,8.23]
[1642171683411,22.7642,146.33,146.21,2.734]
[1642171683612,41.28877034,146.31,146.22,8.23]
[1642171684010,41.28877034,146.31,146.22,8.48]
[1642171684214,41.28877034,146.31,146.22,8.23]
[1642171684510,8.26247,146.3,146.22,8.48]
[1642171684711,28.26130653,146.25,146.22,0.25]
[1642171684912,3.0321,146.24,146.22,0.25]
[1642171685511,3.0321,146.24,146.14,2.735]
[1642171685711,16.2785,146.24,146.14,8.23]
[1642171685911,16.0285,146.24,146.14,8.23]
[1642171686313,16.2785,146.24,146.14,8.23]
[1642171686512,20.19283261,146.24,146.14,8.23]
[1642171686911,28.45530261,146.24,146.14,14.23]
[1642171687112,28.45530261,146.24,146.12,2.736]
[1642171687412,3.91433261,146.23,146.12,2.736]
[1642171687614,10.2656,146.17,146.12,2.736]
[1642171687813,29.38338763,146.16,146.1,8.23]
[1642171688013,29.38338763,146.16,146.1,8.48]
[1642171688513,29.38338763,146.16,146.1,8.23]
[1642171688713,29.38338763,146.16,146.04,8.23]
[1642171688714,2.737,146.15,146.04,8.23]
[1642171689013,2.987,146.15,146.03,2.737]
[1642171689612,27.1483641,146.12,146.02,2.738]
[1642171689814,38.1488341,146.12,146.01,3.04242006]
[1642171690217,35.4108341,146.12,146.01,3.04242006]
[1642171690412,35.4108341,146.12,146.0,10.968]
[1642171690612,27.1483641,146.12,146.01,10.2705]
[1642171690814,27.1483641,146.12,146.02,8.23]
[1642171691012,27.1483641,146.12,146.02,14.23]
[1642171691814,2.738,146.11,146.0,2.738]
[1642171692215,2.988,146.11,146.0,8.738]
[1642171692418,11.25047,146.11,146.0,8.738]
[1642171692717,23.22838616,146.09,146.0,8.738]
[1642171692914,23.22838616,146.09,146.0,2.738]
[1642171693515,11.00047,146.08,146.0,2.738]
[1642171693915,11.00047,146.08,145.97,3.04242006]
[1642171694117,11.00047,146.08,145.95,3.04242006]
[1642171694915,11.00047,146.08,145.95,9.04242006]
[1642171695117,11.00047,146.08,145.95,3.04242006]
[1642171695319,12.17680261,146.08,145.96,2.739]
[1642171695518,12.17680261,146.08,145.96,8.739]
[1642171695717,12.17680261,146.08,145.96,2.739]
[1642171695718,20.40680261,146.08,145.96,2.739]
[1642171695918,25.52854951,146.06,145.96,2.739]
[1642171696118,72.459,146.05,145.96,2.739]
[1642171696519,8.26247,146.04,145.96,2.739]
[1642171696718,30.23781879,146.03,145.96,2.739]
[1642171696918,30.23781879,146.03,145.93,2.739]
[1642171697319,30.23781879,146.03,145.93,8.989]
[1642171697521,30.23781879,146.03,145.93,8.739]
[1642171697718,30.23781879,146.03,145.93,8.989]
[1642171697921,30.23781879,146.03,145.93,8.739]
[1642171698121,30.23781879,146.03,145.93,6.0]
[1642171698421,38.50028879,146.03,145.93,6.0]
[1642171698619,2.74,146.02,145.92,3.04242006]
[1642171699019,28.0305379,146.0,145.9,3.04242006]
[1642171699220,2.74,145.99,145.9,3.04242006]
[1642171699425,10.97,145.99,145.9,2.54242006]
[1642171699620,10.97,145.99,145.85,1.50733721]
[1642171699621,2.74,145.99,145.85,1.50733721]
[1642171699820,8.26247,146.01,145.86,2.741]
[1642171700020,8.23,146.05,145.86,17.97804836]
[1642171700221,73.8782,146.06,145.87,1.50733721]
[1642171700425,96.60464777,146.06,145.88,2.74]
[1642171700619,96.60464777,146.06,145.89,8.23]
[1642171700620,22.72644777,146.06,145.89,8.23]
[1642171700821,5.87912662,146.07,145.9,2.74]
[1642171701021,5.87912662,146.07,145.92,10.2765]
[1642171701222,5.87912662,146.07,145.93,8.55270295]
[1642171701522,5.87912662,146.07,145.93,33.82704119]
[1642171701721,5.87912662,146.07,145.94,7.00704836]
[1642171701922,5.87912662,146.07,145.95,8.23]
[1642171702129,2.739,146.17,145.97,0.30702581]
[1642171702130,5.87912662,146.13,145.97,0.30702581]
[1642171702323,5.87912662,146.13,145.98,8.23]
[1642171702522,5.87912662,146.13,146.0,10.2687]
[1642171702722,5.87912662,146.13,146.01,8.23]
[1642171702926,5.87912662,146.13,146.02,2.738]
[1642171703125,30.30397177,146.12,146.02,2.738]
[1642171703324,30.30397177,146.12,146.02,8.988]
[1642171703622,30.30397177,146.12,146.02,9.248]
[1642171704022,30.30397177,146.12,146.02,19.2569]
[1642171704223,30.30397177,146.12,146.02,8.738]
[1642171704625,30.30397177,146.12,146.03,8.23]
[1642171704824,30.30397177,146.12,146.04,2.738]
[1642171705529,30.30397177,146.12,146.04,6.25]
[1642171705728,30.30397177,146.12,146.02,2.738]
[1642171705926,2.738,146.11,146.02,2.738]
[1642171706126,21.27417,146.11,146.02,2.738]
[1642171706325,27.67735719,146.09,145.95,4.97992312]
[1642171706527,11.00147,146.08,145.95,4.97992312]
[1642171706953,27.67735719,146.09,145.96,7.00704836]
[1642171707154,2.739,146.13,145.99,10.2715]
[1642171707353,2.738,146.17,146.0,8.23]
[1642171707554,2.738,146.2,146.0,21.79791673]
[1642171707753,2.738,146.2,146.01,7.00704836]
[1642171707754,11.00047,146.2,146.01,7.00704836]
[1642171707955,8.26247,146.19,146.02,8.23]
[1642171708157,27.13463894,146.18,146.04,10.2676]
[1642171708353,8.26247,146.17,146.02,8.23]
[1642171708552,2.737,146.16,146.02,14.48]